bitfinex/quotes_ETHUSD_20250804
["timestamp","ask_amount","ask_price","bid_price","bid_amount"]
[1754283050657,0.1408,3546.7,3546.3,3.74003883]
[1754283051191,0.1408,3546.7,3546.4,3.73994758]
[1754283051561,0.1408,3546.7,3546.5,0.9202]
[1754283051880,0.1408,3546.7,3546.6,0.4904]
[1754283052459,0.1408,3546.7,3546.6,0.9202]
[1754283052676,0.1408,3546.7,3546.6,3.73980187]
[1754283052880,0.1408,3546.7,3546.6,0.4298]
[1754283053193,0.1408,3546.7,3546.6,0.9202]
[1754283054098,0.001,3546.8,3546.6,3.73980187]
[1754283054328,0.1418,3546.8,3546.7,0.9202]
[1754283059399,0.001,3546.8,3546.7,5.92861889]
[1754283060868,0.001,3548.3,3546.8,2.81944287]
[1754283061067,0.001,3548.3,3546.9,0.9066]
[1754283061412,0.001,3548.3,3547.8,20.9687652]
[1754283061718,0.1408,3548.0,3547.8,20.9687652]
[1754283062071,0.1408,3548.0,3547.9,0.9066]
[1754283062798,0.1408,3548.0,3547.9,3.94209845]
[1754283063704,0.001,3548.3,3548.0,2.81848928]
[1754283063877,0.001,3548.3,3548.2,20.9687652]
[1754283064078,0.001,3548.3,3548.2,23.78709562]
[1754283064297,0.001,3548.3,3548.2,24.69369562]
[1754283064480,0.001,3548.3,3548.2,27.1029145]
[1754283065680,0.001,3548.3,3548.2,2.40921888]
[1754283065899,0.1418,3548.3,3548.0,3.0]
[1754283066074,0.55,3548.2,3547.0,20.9687652]
[1754283066269,0.1408,3547.2,3547.0,28.13798417]
[1754283066495,0.1408,3547.2,3547.1,6.29320442]
[1754283066694,0.1408,3547.2,3547.0,0.21570149]
[1754283067083,0.1408,3547.2,3546.9,3.0]
[1754283067278,0.1408,3547.2,3546.9,5.57927652]
[1754283067572,0.2346,3547.5,3546.9,6.05327652]
[1754283067799,10.0,3548.6,3547.1,20.9687652]
[1754283067981,0.1408,3547.2,3547.1,20.9687652]
[1754283068185,0.1408,3547.2,3547.1,21.8753652]
[1754283068400,0.1408,3547.2,3547.1,21.4427652]
[1754283068580,0.1408,3547.2,3547.1,20.9687652]
[1754283069208,0.1408,3547.2,3547.1,23.83701227]
[1754283070288,0.1408,3547.2,3547.1,24.31101227]
[1754283070707,0.1408,3547.2,3547.1,23.83701227]
[1754283070882,0.1408,3547.2,3547.1,20.7524772]
[1754283071809,0.1408,3547.2,3547.1,21.6590772]
[1754283073229,0.1408,3547.2,3547.1,20.7524772]
[1754283073400,0.1408,3547.2,3547.0,4.35]
[1754283073608,0.1408,3547.2,3547.0,4.824]
[1754283073925,0.1408,3547.2,3547.1,21.8753652]
[1754283074425,0.1408,3547.2,3547.1,24.26196962]
[1754283074726,0.1408,3547.2,3547.1,21.8753652]
[1754283074925,7.05,3548.1,3547.1,24.74361227]
[1754283075089,0.55,3548.2,3547.5,20.9687652]
[1754283075090,7.05,3548.2,3547.5,20.9687652]
[1754283075290,7.05,3548.2,3547.5,21.4427652]
[1754283075489,0.1408,3547.6,3547.5,21.4427652]
[1754283075689,0.1408,3547.6,3547.5,21.8753652]
[1754283076431,0.1408,3547.6,3547.5,0.474]
[1754283077804,0.1408,3547.6,3547.5,0.9066]
[1754283078189,0.1408,3547.6,3547.5,0.474]
[1754283078395,0.1408,3547.6,3547.5,0.9066]
[1754283079375,0.1408,3547.6,3547.5,25.50182301]
[1754283079900,0.001,3548.0,3547.5,22.68293648]
[1754283080098,0.1418,3548.0,3547.6,0.9066]
[1754283080298,0.1418,3548.0,3547.7,0.9066]
[1754283080825,0.1418,3548.0,3547.6,2.81879857]
[1754283080826,0.1418,3548.0,3547.8,0.9066]
[1754283081227,0.1418,3548.0,3547.8,2.8186209]
[1754283081413,0.1418,3548.0,3547.9,0.9066]
[1754283081607,0.1418,3548.0,3547.9,3.72516873]
[1754283081945,3.43962953,3548.6,3547.9,25.34832392]
[1754283082145,0.1408,3548.1,3548.0,0.9066]
[1754283082648,4.35,3548.7,3548.0,0.9066]
[1754283082825,0.1408,3548.2,3548.1,0.474]
[1754283083715,0.1408,3548.2,3548.1,0.9066]
[1754283083930,0.1408,3548.2,3547.6,0.1408]
[1754283084124,0.1408,3548.2,3547.8,4.349]
[1754283084329,0.1408,3548.2,3547.9,21.8753652]
[1754283084548,0.1408,3548.2,3547.9,24.69392403]
[1754283084749,0.1408,3548.2,3548.0,0.9066]
[1754283085165,0.1408,3548.2,3548.1,0.9066]
[1754283085571,0.1408,3548.2,3548.1,0.4326]
[1754283085742,0.1408,3548.2,3548.1,0.9066]
[1754283086383,0.1408,3548.2,3548.1,0.474]
[1754283086752,0.1408,3548.2,3547.6,2.80651365]
[1754283086935,0.1408,3548.0,3547.7,4.348]
[1754283087135,0.1408,3548.0,3547.7,4.822]
[1754283087538,0.1408,3548.0,3547.8,0.474]
[1754283089481,0.1408,3548.0,3547.5,20.9687652]
[1754283089663,0.1408,3548.0,3547.6,7.55380335]
[1754283089863,0.1408,3548.0,3547.6,8.00230335]
[1754283090064,0.1408,3548.0,3547.6,7.10350335]
[1754283090269,0.1408,3548.0,3547.7,0.8988]
[1754283090986,0.1408,3548.0,3547.8,0.4503]
[1754283091785,0.1408,3548.0,3547.6,7.10350335]
[1754283092039,0.1408,3548.0,3547.9,0.4503]
[1754283092849,0.1408,3548.0,3547.4,3.1408]
[1754283093042,0.02858287,3547.9,3546.9,0.20859911]
[1754283093202,0.1408,3547.2,3547.0,0.4503]
[1754283093397,0.1408,3547.2,3547.1,1.29793991]
[1754283093919,0.1408,3547.2,3547.1,1.74643991]
[1754283102135,0.1408,3547.4,3547.1,4.74643991]
[1754283102331,0.1408,3547.4,3547.2,0.8988]
[1754283103633,0.1408,3547.4,3547.1,3.84763991]
[1754283103955,0.1408,3547.4,3547.3,0.8988]
[1754283107456,0.1418,3547.6,3547.3,0.8988]
[1754283107660,0.1418,3547.6,3547.4,0.8988]
[1754283107861,0.1418,3547.6,3547.4,1.95626157]
[1754283108038,0.1418,3547.6,3547.5,0.8988]
[1754283109441,0.1418,3547.6,3547.3,3.0]
[1754283109669,0.1408,3547.4,3547.3,3.0]
[1754283109964,0.1408,3547.4,3547.3,3.8988]
[1754283111289,0.1408,3547.4,3547.3,5.36709682]
[1754283113947,0.1408,3547.4,3547.3,8.18614229]
[1754283114151,0.001,3547.6,3547.4,2.81888724]
[1754283114453,0.001,3547.6,3547.5,25.3137652]
[1754283114642,0.001,3547.6,3547.5,29.17225173]
[1754283114845,0.001,3547.6,3547.5,30.01789164]
[1754283116375,0.001,3547.6,3547.5,27.19900511]
[1754283117751,0.001,3547.6,3547.5,0.98643991]
[1754283117952,0.001,3547.6,3547.1,0.002]
[1754283117953,0.3258,3547.6,3547.1,0.002]
[1754283118152,0.3248,3547.5,3547.1,0.002]
[1754283118388,30.0,3547.4,3547.1,0.002]
[1754283118547,2.89682994,3547.3,3547.1,0.002]
[1754283118759,0.3248,3547.2,3547.1,0.002]
[1754283120189,4.6698,3547.2,3547.1,0.002]
[1754283120956,5.2198,3547.2,3547.1,0.002]
[1754283121204,5.24838287,3547.2,3547.1,0.002]
[1754283122068,5.2198,3547.2,3547.1,0.002]
[1754283122273,6.74178,3547.2,3547.1,0.002]
[1754283122473,5.2198,3547.2,3547.1,0.002]
[1754283122813,5.1296,3547.2,3547.1,0.002]
[1754283123320,5.24838287,3547.2,3547.1,0.002]
[1754283127498,5.15818287,3547.2,3547.1,0.002]
[1754283127809,5.6927092,3547.2,3547.1,0.002]
[1754283128119,5.8335092,3547.2,3547.1,0.002]
[1754283130226,5.2835092,3547.2,3547.1,0.002]
[1754283130431,5.2835092,3547.2,3547.1,0.4757]
[1754283130736,5.2825092,3547.2,3547.1,0.4757]
[1754283132323,5.2825092,3547.2,3547.1,0.002]
[1754283133421,0.1408,3547.2,3547.1,0.002]
[1754283133622,4.4848,3547.2,3547.1,0.4757]
[1754283134321,4.4848,3547.2,3547.1,0.9312]
[1754283134713,4.4848,3547.2,3547.1,0.4757]
[1754283135124,4.4848,3547.2,3547.1,0.9312]
[1754283135694,30.58928,3547.2,3547.1,0.002]
[1754283135895,34.93328,3547.2,3547.1,0.002]
[1754283136436,4.93328,3547.2,3547.1,0.002]
[1754283138203,4.93328,3547.2,3547.1,0.4757]
[1754283138204,4.4848,3547.2,3547.1,0.4757]
[1754283138530,4.4838,3547.2,3547.1,0.4757]
[1754283139199,4.4838,3547.2,3547.1,0.002]
[1754283140201,4.51238287,3547.2,3547.1,0.002]
[1754283140609,4.4838,3547.2,3547.1,0.9312]
[1754283141199,0.1408,3547.2,3547.1,0.9312]
[1754283141435,0.1408,3547.2,3547.1,3.12119652]
[1754283141626,4.4838,3547.2,3547.1,3.12119652]
[1754283145936,0.1408,3547.2,3547.1,3.12119652]
[1754283147418,4.342,3547.3,3547.1,3.12119652]
[1754283147617,4.342,3547.3,3547.2,0.9292]
[1754283147618,4.4828,3547.3,3547.2,0.9292]
[1754283147822,4.4828,3547.3,3547.2,3.33819617]
[1754283148013,0.1408,3547.3,3547.2,3.33819617]
[1754283156352,0.1408,3547.5,3547.2,3.33819617]
[1754283156727,0.1408,3547.5,3547.3,0.9365]
[1754283157115,0.1408,3547.5,3547.4,0.9365]
[1754283157315,0.1408,3547.5,3547.4,1.55316385]
[1754283157849,0.001,3547.6,3547.4,1.55316385]
[1754283158012,0.001,3547.6,3547.4,3.43562913]
[1754283158212,0.001,3547.6,3547.5,0.9365]
[1754283161539,0.001,3547.6,3547.4,0.61666385]
[1754283161743,0.1418,3547.6,3547.4,0.4783]
[1754283162323,0.1418,3547.6,3547.5,0.4783]
[1754283164323,0.1418,3547.6,3547.1,3.002]
[1754283164522,0.1408,3547.3,3547.1,3.4803]
[1754283164746,0.1408,3547.3,3547.2,3.25096226]
[1754283164942,0.001,3547.6,3547.2,3.84996226]
[1754283164943,4.34,3547.6,3547.2,3.84996226]
[1754283165148,4.34,3547.6,3547.2,2.91346226]
[1754283165459,4.34,3547.6,3547.3,0.9365]
[1754283165633,4.34,3547.6,3547.4,0.96711066]
[1754283165834,4.34,3547.6,3547.5,0.9365]
[1754283167955,0.001,3547.6,3547.5,0.9365]
[1754283173994,0.001,3547.6,3547.5,0.4783]
[1754283176481,0.001,3547.6,3547.2,0.1408]
[1754283176656,0.1408,3547.4,3547.2,0.4783]
[1754283177060,0.1408,3547.4,3547.1,0.002]
[1754283177261,0.1408,3547.4,3547.3,0.4783]
[1754283178486,0.1408,3547.4,3547.1,0.4803]
[1754283178889,0.1408,3547.4,3547.1,0.002]
[1754283179093,0.1408,3547.4,3547.2,0.4666]
[1754283179288,0.02958287,3547.6,3547.1,0.002]
[1754283179289,0.001,3547.6,3547.1,0.002]
[1754283179456,0.1408,3547.2,3547.1,0.002]
[1754283184800,0.49418287,3547.2,3547.1,0.002]
[1754283186214,0.40398287,3547.2,3547.1,0.002]
[1754283186414,0.16938287,3547.2,3547.1,0.002]
[1754283187888,30.16938287,3547.2,3547.1,0.002]
[1754283188117,33.33384707,3547.2,3547.1,0.002]
[1754283188421,37.66984707,3547.2,3547.1,0.002]
[1754283188714,37.34504707,3547.2,3547.1,0.002]
[1754283189783,37.66984707,3547.2,3547.1,0.002]
[1754283190025,38.21984707,3547.2,3547.1,0.002]
[1754283191901,45.26984707,3547.2,3547.1,0.002]
[1754283192106,48.20201301,3547.2,3547.1,0.002]
[1754283192720,51.20201301,3547.2,3547.1,0.002]
[1754283194226,0.55,3546.6,3545.7,0.4388]
[1754283194403,40.0,3546.3,3545.9,0.4666]
[1754283194585,0.1408,3545.9,3545.1,5.82079112]
[1754283194919,4.4758,3545.9,3545.8,0.21424276]
[1754283195321,4.4758,3545.9,3545.8,0.9074]
[1754283197317,0.1408,3545.9,3545.8,0.9074]
[1754283197518,4.4758,3545.9,3545.8,0.9074]
[1754283203839,0.1408,3545.9,3545.8,0.9074]
[1754283204027,4.4758,3545.9,3545.8,0.9074]
[1754283208334,4.4758,3545.9,3545.8,0.002]
[1754283208543,4.92338,3545.9,3545.8,0.002]
[1754283209138,4.92338,3545.9,3545.8,0.4818]
[1754283210046,4.92338,3545.9,3545.8,0.002]
[1754283210638,4.92338,3545.9,3545.8,0.4818]
[1754283212417,4.92338,3545.9,3545.8,0.9211]
[1754283212754,0.1408,3545.9,3545.8,0.9211]
[1754283212931,4.4748,3545.9,3545.8,0.9211]
[1754283213548,4.334,3545.9,3545.8,0.002]
[1754283213734,0.55,3546.0,3545.8,0.002]
[1754283213935,7.1402,3546.3,3545.8,0.002]
[1754283214140,40.0,3546.0,3545.8,0.002]
[1754283214461,30.0,3546.0,3545.8,0.002]
[1754283215762,0.55,3546.1,3545.8,0.002]
[1754283215928,4.334,3546.0,3545.8,0.002]
[1754283217659,4.334,3545.9,3545.8,0.002]
[1754283217824,4.88371052,3545.9,3545.8,0.002]
[1754283218025,35.75851052,3545.9,3545.8,0.002]
[1754283218253,35.72992765,3545.9,3545.8,0.002]
[1754283218455,38.55008614,3545.9,3545.8,0.002]
[1754283218671,39.20972765,3545.9,3545.8,0.002]
[1754283218845,38.88492765,3545.9,3545.8,0.002]
[1754283219052,38.72992765,3545.9,3545.8,0.002]
[1754283221864,45.50992765,3545.9,3545.8,0.002]
[1754283222567,55.85988614,3545.9,3545.8,0.002]
[1754283223458,56.00068614,3545.9,3545.8,0.002]
[1754283224199,48.84652765,3545.9,3545.8,0.002]
[1754283224343,53.17952765,3545.9,3545.8,0.002]
[1754283224954,55.99968614,3545.9,3545.8,0.002]
[1754283225345,53.17952765,3545.9,3545.8,0.002]
[1754283225562,51.82492765,3545.9,3545.8,0.002]
[1754283226236,52.37492765,3545.9,3545.8,0.002]
[1754283226440,52.69972765,3545.9,3545.8,0.002]
[1754283226864,52.60952765,3545.9,3545.8,0.002]
[1754283227048,52.37492765,3545.9,3545.8,0.002]
[1754283227979,48.04192765,3545.9,3545.8,0.002]
[1754283228180,52.37492765,3545.9,3545.8,0.002]
[1754283228974,52.37492765,3545.9,3545.8,0.4818]
[1754283230165,52.37492765,3545.9,3545.8,0.002]
[1754283231160,55.51988614,3545.9,3545.8,0.002]
[1754283231349,52.69972765,3545.9,3545.8,0.002]
[1754283231677,52.37492765,3545.9,3545.8,0.002]
[1754283231976,52.37492765,3545.9,3545.8,0.4818]
[1754283232779,52.37492765,3545.9,3545.8,0.002]
[1754283233179,48.04192765,3545.9,3545.8,0.002]
[1754283233383,52.37492765,3545.9,3545.8,0.002]
[1754283233688,52.37392765,3545.9,3545.8,0.002]
[1754283235276,55.19408614,3545.9,3545.8,0.002]
[1754283235491,55.51888614,3545.9,3545.8,0.002]
[1754283235964,55.42868614,3545.9,3545.8,0.002]
[1754283236167,55.19408614,3545.9,3545.8,0.002]
[1754283239191,52.37392765,3545.9,3545.8,0.002]
[1754283239375,55.19408614,3545.9,3545.8,0.002]
[1754283239566,52.37392765,3545.9,3545.8,0.002]
[1754283240594,55.19408614,3545.9,3545.8,0.002]
[1754283242367,55.51888614,3545.9,3545.8,0.002]
[1754283242566,76.16285134,3545.9,3545.8,0.002]
[1754283242876,76.48765134,3545.9,3545.8,0.002]
[1754283243200,0.55,3545.7,3544.6,0.002]
[1754283243404,40.0,3545.0,3544.8,0.4813]
[1754283243703,40.55,3544.7,3544.6,0.4411]
[1754283243867,4.882,3544.7,3544.6,0.4411]
[1754283244408,4.882,3544.7,3544.6,0.9224]
[1754283245509,6.3702,3544.7,3544.6,0.9224]
[1754283245965,4.882,3544.7,3544.6,0.9224]
[1754283246164,7.882,3544.7,3544.6,0.9224]
[1754283246370,37.882,3544.7,3544.6,0.4833]
[1754283246569,37.882,3544.7,3544.6,0.002]
[1754283246570,40.70311321,3544.7,3544.6,0.002]
[1754283246770,43.57136028,3544.7,3544.6,0.002]
[1754283247230,40.75024707,3544.7,3544.6,0.002]
[1754283247423,43.57136028,3544.7,3544.6,0.002]
[1754283247619,40.75024707,3544.7,3544.6,0.002]
[1754283248221,0.29539677,3545.9,3544.6,0.9224]
[1754283248385,0.4813,3545.0,3544.7,0.9204]
[1754283248584,0.4592,3546.4,3544.8,0.9204]
[1754283248585,4.332,3544.9,3544.8,0.9204]
[1754283249326,40.55,3544.7,3544.6,0.002]
[1754283249617,40.55,3544.7,3544.2,0.002]
[1754283249618,40.0,3544.5,3544.2,0.002]
[1754283249860,30.55,3544.3,3544.2,0.002]
[1754283250849,30.55,3544.3,3544.2,0.9224]
[1754283251053,33.41824707,3544.3,3544.2,0.4833]
[1754283251258,33.41824707,3544.3,3544.2,0.002]
[1754283251459,39.23967866,3544.3,3544.2,0.002]
[1754283251636,39.69887866,3544.3,3544.2,0.002]
[1754283252506,39.93347866,3544.3,3544.2,0.002]
[1754283253331,40.07427866,3544.3,3544.2,0.002]
[1754283254928,39.38047866,3544.3,3544.2,0.002]
[1754283255239,36.55904707,3544.3,3544.2,0.002]
[1754283255431,36.55904707,3544.3,3544.2,0.9224]
[1754283255633,40.89804707,3544.3,3544.2,0.9224]
[1754283256006,40.89804707,3544.3,3544.2,0.002]
[1754283256442,43.71947866,3544.3,3544.2,0.002]
[1754283256655,44.41327866,3544.3,3544.2,0.002]
[1754283256833,45.92209824,3544.3,3544.2,0.002]
[1754283258636,66.65626344,3544.3,3544.2,0.002]
[1754283258826,66.89086344,3544.3,3544.2,0.002]
[1754283259737,67.73959044,3544.3,3544.2,0.002]
[1754283263160,40.33929824,3544.3,3544.2,0.4411]
[1754283263352,44.67829824,3544.3,3544.2,0.9224]
[1754283264229,3.0,3543.6,3542.3,20.9687652]
[1754283264437,0.1408,3542.7,3542.4,2.85403961]
[1754283264636,4.341,3542.6,3542.5,0.4391]
[1754283264836,4.341,3542.6,3542.5,0.9204]
[1754283266262,4.891,3542.6,3542.5,0.9204]
[1754283267444,34.891,3542.6,3542.5,0.9204]
[1754283268763,0.1408,3542.7,3542.5,0.9204]
[1754283268967,4.344,3542.6,3541.8,20.9687652]
[1754283269155,4.343,3542.5,3541.9,2.10799483]
[1754283269536,4.343,3542.5,3542.0,0.9327]
[1754283269936,0.1408,3542.1,3541.9,2.10799483]
[1754283270136,0.1408,3542.1,3542.0,0.2219178]
[1754283270336,4.4848,3542.1,3542.0,0.2219178]
[1754283270768,4.4858,3542.1,3542.0,1.1546178]
[1754283271732,4.4858,3542.1,3542.0,1.36257474]
[1754283272437,4.4848,3542.1,3542.0,22.33133994]
[1754283273475,4.4838,3542.1,3542.0,22.33133994]
[1754283273653,4.343,3542.1,3542.0,22.33133994]
[1754283274553,0.1408,3542.2,3542.0,22.33133994]
[1754283274762,0.1408,3542.2,3542.1,3.65896762]
[1754283274971,4.4838,3542.2,3542.1,3.65896762]
[1754283275146,0.1408,3542.2,3542.1,3.65896762]
[1754283275487,4.4828,3542.2,3542.1,3.65896762]
[1754283276686,0.1408,3542.2,3542.1,3.65896762]
[1754283277133,0.1408,3542.2,3542.1,0.9327]
[1754283281584,0.16938287,3542.2,3541.7,1.04388312]
[1754283281741,0.1408,3542.2,3541.8,0.9327]
[1754283282185,4.34,3542.3,3541.7,0.11118312]
[1754283282186,4.34,3542.3,3541.9,0.9327]
[1754283282395,4.34,3542.3,3542.0,0.9327]
[1754283282601,30.0,3542.8,3542.1,0.9327]
[1754283282753,4.36758287,3542.7,3542.2,0.9327]
[1754283282954,0.1408,3542.3,3541.7,0.11118312]
[1754283283250,0.1408,3542.0,3541.7,0.32110321]
[1754283283559,0.1408,3542.0,3541.8,0.9327]
[1754283283767,0.1408,3542.0,3541.7,0.11118312]
[1754283284073,0.1408,3542.0,3541.8,0.9327]
[1754283284278,4.4828,3542.1,3541.9,0.9327]
[1754283284454,4.4828,3542.1,3542.0,0.9327]
[1754283288870,4.4828,3542.1,3542.0,0.4411]
[1754283289381,4.4828,3542.1,3541.8,0.4916]
[1754283289382,4.4828,3542.1,3541.8,0.9327]
[1754283289579,0.1408,3541.9,3541.7,0.32518404]
[1754283289743,0.1408,3541.9,3541.8,0.9327]
[1754283294888,4.4758,3541.9,3541.8,0.9327]
[1754283295674,0.1408,3541.9,3541.8,0.9327]
[1754283295987,4.4758,3542.0,3541.8,0.9327]
[1754283296183,0.1408,3542.0,3541.9,0.9327]
[1754283296384,4.335,3542.0,3541.9,0.9327]
[1754283296982,4.4758,3542.2,3541.9,0.9327]
[1754283297188,4.4758,3542.2,3541.8,2.82341169]
[1754283297387,4.4758,3542.2,3542.0,0.9327]
[1754283297606,6.784,3543.5,3542.1,1.30830365]
[1754283297773,0.1408,3542.7,3542.2,0.9327]
[1754283298112,4.335,3543.4,3542.3,4.0735]
[1754283298113,0.1408,3542.8,3542.3,4.0735]
[1754283298308,0.1408,3542.8,3542.4,6.54211268]
[1754283298809,0.1408,3542.8,3542.5,0.9327]
[1754283299178,0.1408,3542.8,3542.6,0.91672785]
[1754283299370,0.1408,3542.8,3542.6,0.8885]
[1754283299575,0.1408,3542.8,3542.7,0.8885]
[1754283303377,11.119,3543.5,3542.7,1.25963316]
[1754283303571,0.1408,3542.9,3542.8,0.8885]
[1754283303780,11.119,3543.5,3542.9,0.8885]
[1754283303991,0.1408,3543.0,3542.8,0.02822626]
[1754283304478,0.1408,3543.0,3542.9,0.8885]
[1754283305406,0.1408,3543.1,3542.9,0.8885]
[1754283305710,4.335,3543.3,3543.0,0.8885]
[1754283305909,4.335,3543.3,3543.1,0.8885]
[1754283306284,6.784,3543.5,3543.2,0.8885]
[1754283306476,4.334,3543.7,3543.3,0.8885]
[1754283306679,0.1408,3543.5,3543.0,0.1408]
[1754283306876,0.1408,3543.5,3543.1,0.29633201]
[1754283307112,0.1408,3543.5,3543.2,0.8885]
[1754283307309,0.1408,3543.5,3543.3,0.8885]
[1754283307486,0.1408,3543.5,3543.0,0.1408]
[1754283307693,0.1408,3543.5,3543.2,0.8885]
[1754283307893,0.1408,3543.5,3543.3,0.8885]
[1754283308213,0.1408,3543.5,3543.4,0.8885]
[1754283308599,1.07908,3543.5,3542.6,3.8885]
[1754283308789,0.1408,3543.1,3542.6,0.8885]
[1754283308988,4.4748,3543.1,3542.6,0.8885]
[1754283309201,4.334,3543.1,3542.6,0.4341]
[1754283309406,0.1408,3542.8,3542.6,0.4341]
[1754283309605,0.1408,3542.8,3542.4,0.8885]
[1754283309806,0.1408,3542.8,3542.3,0.1408]
[1754283310024,0.1408,3542.8,3542.5,0.8885]
[1754283311030,0.1408,3542.8,3542.6,0.8885]
[1754283311329,0.1408,3542.8,3542.7,0.8885]
[1754283312106,4.4748,3542.8,3542.7,0.8885]
[1754283312627,4.334,3542.8,3542.7,0.8885]
[1754283312932,4.334,3542.8,3542.5,0.4544]
[1754283313136,4.334,3542.8,3542.1,0.4341]
[1754283313430,0.1408,3542.3,3541.8,1.0293]
[1754283313739,0.1408,3542.1,3541.8,0.8885]
[1754283314292,0.1408,3542.1,3541.9,0.8885]
[1754283314496,0.1408,3542.4,3542.0,0.8885]
[1754283314690,0.1408,3542.4,3542.1,0.8885]
[1754283314919,0.1408,3542.4,3542.2,0.8885]
[1754283315632,0.1408,3542.4,3542.3,0.8885]
[1754283315809,4.4748,3542.6,3542.3,0.8885]
[1754283315997,4.4748,3542.6,3542.1,0.8905]
[1754283315998,4.334,3542.6,3542.1,0.8905]
[1754283316334,0.1408,3542.4,3542.1,0.8905]
[1754283316838,0.51938287,3542.3,3542.1,0.002]
[1754283317041,0.1408,3542.2,3542.1,0.4564]
[1754283317203,0.1408,3542.2,3542.1,0.002]
[1754283317928,0.1408,3542.2,3542.1,0.8905]
[1754283318129,0.1408,3542.2,3542.1,0.002]
[1754283319431,0.4908,3543.4,3542.1,0.8905]
[1754283319773,0.1408,3542.5,3542.2,0.8885]
[1754283319933,0.1408,3542.5,3542.1,2.82512472]
[1754283320129,0.1408,3542.5,3542.3,0.8885]
[1754283320557,0.1408,3542.5,3542.4,0.8885]
[1754283322495,4.334,3542.7,3542.4,0.8885]
[1754283322784,0.1408,3542.7,3542.5,0.8885]
[1754283322958,7.5408,3543.4,3542.6,0.8885]
[1754283322959,4.4748,3543.0,3542.6,0.8885]
[1754283323163,0.1408,3543.0,3542.5,0.1408]
[1754283323347,4.334,3543.0,3542.7,2.82266362]
[1754283323551,4.334,3543.0,3542.7,3.49014557]
[1754283323751,4.334,3543.0,3542.8,0.8885]
[1754283323954,4.334,3543.0,3542.8,3.71112193]
[1754283324194,0.1408,3543.1,3542.9,0.8885]
[1754283324558,0.1408,3543.1,3543.0,0.8885]
[1754283324756,4.334,3543.3,3543.0,0.8885]
[1754283325087,4.4748,3543.3,3543.0,0.8885]
[1754283325287,4.4748,3543.3,3543.1,0.8885]
[1754283325789,4.4748,3543.3,3542.8,0.1408]
[1754283326095,4.9656,3543.3,3542.8,0.8885]
[1754283326250,0.1408,3543.0,3542.8,0.8885]
[1754283326668,0.1408,3543.0,3542.5,0.5749]
[1754283326868,4.8248,3543.3,3542.6,0.8885]
[1754283327091,0.1408,3542.8,3542.4,3.0]
[1754283327295,0.1408,3542.8,3542.5,0.8885]
[1754283327959,0.1408,3542.6,3542.5,0.8885]
[1754283328963,0.1408,3542.6,3542.2,0.4891]
[1754283329271,0.4989,3543.1,3542.3,0.9469]
[1754283329468,1.00565,3543.1,3542.1,0.4911]
[1754283329796,4.334,3543.0,3542.2,3.28089766]
[1754283330003,4.334,3543.0,3542.2,2.82309766]
[1754283330171,4.334,3543.0,3542.3,0.9469]
[1754283330371,4.334,3543.0,3542.4,0.4891]
[1754283330591,4.334,3543.0,3542.4,0.9469]
[1754283331196,7.05,3543.3,3542.4,1.3241054]
[1754283331503,7.05,3543.3,3542.4,0.9469]
[1754283331504,4.334,3542.9,3542.4,0.9469]
[1754283331807,7.05,3543.3,3542.7,3.0]
[1754283331970,4.334,3543.2,3542.8,0.9469]
[1754283332170,4.334,3543.2,3542.9,0.9469]
[1754283332393,4.334,3543.2,3543.0,0.9469]
[1754283332589,4.334,3543.2,3543.0,0.37695974]
[1754283332917,6.784,3543.7,3543.1,0.9469]
[1754283333202,4.334,3543.6,3543.2,0.4891]
[1754283333402,4.334,3543.6,3543.3,0.9469]
[1754283334572,4.334,3543.6,3543.0,1.32385974]
[1754283335182,4.334,3543.6,3542.7,0.4578]
[1754283335412,4.8329,3543.6,3542.7,0.9469]
[1754283338418,4.334,3543.6,3542.7,0.9469]
[1754283338719,0.76208287,3543.5,3542.4,0.9469]
[1754283338918,0.4989,3543.4,3542.4,0.9469]
[1754283339423,1.68690829,3543.4,3542.4,0.9469]
[1754283339606,0.1408,3542.8,3542.4,0.9469]
[1754283339788,0.1408,3542.8,3542.4,0.4578]
[1754283340119,0.4989,3543.6,3542.7,3.0]
[1754283340291,0.1408,3543.1,3542.8,0.9469]
[1754283340494,0.1408,3543.1,3542.9,0.9469]
[1754283340814,0.1408,3543.1,3542.9,0.4578]
[1754283341528,0.1408,3543.1,3542.9,0.9469]
[1754283342388,0.1408,3543.1,3543.0,0.9469]
[1754283343204,0.1408,3543.1,3542.6,2.96356653]
[1754283343526,0.1408,3543.1,3542.8,0.9469]
[1754283344002,0.1408,3543.1,3542.9,0.9469]
[1754283344407,0.1408,3543.1,3543.0,0.9469]
[1754283347130,0.66828287,3543.1,3542.2,0.4578]
[1754283347301,0.1408,3542.7,3542.2,0.76160013]
[1754283347510,0.1408,3542.4,3542.2,0.9469]
[1754283347692,0.1408,3542.4,3542.3,0.9469]
[1754283352993,0.1408,3542.6,3542.3,3.76992458]
[1754283353198,0.1408,3542.8,3542.4,3.9469]
[1754283353397,4.333,3542.9,3542.4,0.9469]
[1754283353633,0.1408,3542.6,3542.4,0.4891]
[1754283353928,0.1408,3542.6,3542.5,0.9469]
[1754283356641,0.1408,3542.6,3542.5,1.32390001]
[1754283356821,0.1408,3542.8,3542.5,0.9469]
[1754283356993,4.333,3542.9,3542.4,3.0]
[1754283357199,4.333,3542.9,3542.6,0.9469]